fUSD/lending_fUSD_20250123
["ID","MTS","AMOUNT","RATE_DAILY","PERIOD"]
[350087419,1737611455534,-1027.46,0.00019898,2]
[350087420,1737611455544,-500.0,0.00019898,2]
[350087421,1737611455553,-500.0,0.00019898,2]
[350087422,1737611455562,-500.0,0.00019898,2]
[350087423,1737611455571,-2511.24,0.00019898,2]
[350087424,1737611455581,-622.38,0.00019898,2]
[350087425,1737611455593,-169.06350749,0.00019899,2]
[350087426,1737611455604,-500.0,0.00019899,2]
[350087427,1737611455613,-169.31796234,0.000199,2]
[350087428,1737611455622,-2000.0,0.000199,7]
[350087429,1737611455631,-2087.18199478,0.000199,2]
[350087430,1737611455642,-150.0,0.00019907,2]
[350087431,1737611455651,-179.01625693,0.00019932,2]
[350087432,1737611455661,-150.0,0.00019942,2]
[350087433,1737611455671,-150.0,0.00019946,2]
[350087434,1737611455681,-232.45,0.00019953,2]
[350087435,1737611455690,-150.0,0.00019953,2]
[350087436,1737611455700,-150.0,0.00019959,2]
[350087437,1737611455709,-150.0,0.0001996,2]
[350087438,1737611455719,-150.0,0.00019966,2]
[350087439,1737611455728,-2087.18199457,0.00019969,2]
[350087440,1737611455739,-500.87571151,0.00019973,2]
[350087441,1737611455749,-500.0,0.00019998,2]
[350087442,1737611455758,-637.57222417,0.00019998,2]
[350087443,1737611455767,-652.91,0.00019998,2]
[350087444,1737611455777,-500.0,0.00019998,2]
[350087445,1737611455786,-1103.54,0.00019998,2]
[350087446,1737611455796,-500.0,0.00019998,2]
[350087447,1737611455805,-500.0,0.00019998,2]
[350087448,1737611455815,-500.0,0.00019998,2]
[350087449,1737611455824,-500.0,0.00019998,2]
[350087450,1737611455833,-500.0,0.00019998,2]
[350087451,1737611455843,-523.75,0.00019998,2]
[350087452,1737611455852,-814.46,0.00019998,2]
[350087453,1737611455862,-500.0,0.00019998,2]
[350087454,1737611455871,-521.67,0.00019998,2]
[350087455,1737611455880,-500.0,0.00019998,2]
[350087456,1737611455890,-386.78201856,0.00019998,2]
[350087457,1737611455899,-500.0,0.00019998,2]
[350087458,1737611455908,-550.36,0.00019998,2]
[350087459,1737611455918,-320.25778784,0.00019998,2]
[350087460,1737611455927,-661.84,0.00019998,2]
[350087461,1737611455936,-500.0,0.00019998,2]
[350087462,1737611455945,-500.0,0.00019998,2]
[350087463,1737611455954,-500.0,0.00019998,2]
[350087464,1737611455963,-500.0,0.00019998,2]
[350087465,1737611455971,-500.0,0.00019998,2]
[350087466,1737611455982,-756.71,0.00019998,2]
[350087467,1737611455991,-500.0,0.00019998,2]
[350087468,1737611456001,-500.0,0.00019998,2]
[350087469,1737611456010,-820.51,0.00019998,2]
[350087470,1737611456020,-500.0,0.00019998,2]
[350087471,1737611456028,-518.68439766,0.00019998,2]
[350087472,1737611456038,-500.0,0.00019998,2]
[350087473,1737611456047,-500.0,0.00019998,2]
[350087474,1737611456056,-500.0,0.00019998,2]
[350087475,1737611456066,-249.86131871,0.00019998,2]
[350087476,1737611456076,-870.52,0.00019998,2]
[350087477,1737611456085,-500.0,0.00019998,2]
[350087478,1737611456094,-512.1262911,0.00019998,2]
[350087479,1737611456103,-500.0,0.00019998,2]
[350087480,1737611456113,-500.0,0.00019998,2]
[350087481,1737611456122,-846.98,0.00019998,2]
[350087482,1737611456131,-560.38,0.00019998,2]
[350087483,1737611456140,-804.46,0.00019998,2]
[350087484,1737611456150,-500.0,0.00019998,2]
[350087485,1737611456159,-500.0,0.00019998,2]
[350087486,1737611456168,-500.0,0.00019998,2]
[350087487,1737611456177,-596.15,0.00019998,2]
[350087488,1737611456187,-500.0,0.00019998,2]
[350087489,1737611456196,-730.62,0.00019998,2]
[350087490,1737611456205,-722.81,0.00019998,2]
[350087491,1737611456214,-500.0,0.00019998,2]
[350087492,1737611456223,-500.0,0.00019998,2]
[350087493,1737611456234,-343.32161091,0.00019998,2]
[350087494,1737611456244,-926.24,0.00019998,2]
[350087495,1737611456254,-872.58,0.00019998,2]
[350087496,1737611456264,-756.42,0.00019998,2]
[350087497,1737611456273,-571.58,0.00019998,2]
[350087498,1737611456283,-441.794103,0.00019998,2]
[350087499,1737611456294,-907.07,0.00019998,2]
[350087500,1737611456303,-500.0,0.00019998,2]
[350087501,1737611456313,-500.0,0.00019998,2]
[350087502,1737611456322,-740.54,0.00019998,2]
[350087503,1737611456332,-174.37,0.00019998,2]
[350087504,1737611456341,-642.453793,0.00019998,2]
[350087505,1737611456350,-500.0,0.00019998,2]
[350087506,1737611456359,-500.0,0.00019998,2]
[350087507,1737611456368,-959.94,0.00019998,2]
[350087508,1737611456377,-500.0,0.00019998,2]
[350087509,1737611456387,-1187.1547545,0.00019998,2]
[350087510,1737611456396,-770.37,0.00019998,2]
[350087511,1737611456405,-500.0,0.00019998,2]
[350087512,1737611456414,-961.12,0.00019998,2]
[350087513,1737611456423,-928.68,0.00019998,2]
[350087514,1737611456432,-500.0,0.00019998,2]
[350087515,1737611456441,-3389.92,0.00019998,2]
[350087516,1737611456450,-500.0,0.00019998,2]
[350087517,1737611456459,-1163.05,0.00019998,2]
[350087518,1737611456468,-3328.2,0.00019998,2]
[350087519,1737611456477,-500.0,0.00019998,2]
[350087520,1737611456488,-780.3795601,0.00019998,2]
[350087521,1737611456497,-647.35,0.00019998,2]
[350087522,1737611456506,-597.37,0.00019998,2]
[350087523,1737611456515,-1351.46,0.00019998,2]
[350087524,1737611456525,-500.0,0.00019998,2]
[350087525,1737611456536,-1916.09,0.00019998,2]
[350087526,1737611456545,-500.0,0.00019998,2]
[350087527,1737611456555,-1853.67,0.00019998,2]
[350087528,1737611456564,-500.0,0.00019998,2]
[350087529,1737611456573,-500.0,0.00019998,2]
[350087530,1737611456582,-500.0,0.00019998,2]
[350087531,1737611456596,-1180.89,0.00019998,2]
[350087532,1737611456605,-1225.17,0.00019998,2]
[350087533,1737611456614,-604.47,0.00019998,2]
[350087534,1737611456623,-500.0,0.00019998,2]
[350087535,1737611456635,-2192.28,0.00019998,2]
[350087536,1737611456644,-1087.59,0.00019998,2]
[350087537,1737611456653,-500.0,0.00019998,2]
[350087538,1737611456662,-215.24823034,0.00019998,2]
[350087539,1737611456673,-500.0,0.00019998,2]
[350087540,1737611456682,-2557.78,0.00019998,2]
[350087541,1737611456691,-500.0,0.00019998,2]
[350087542,1737611456701,-500.0,0.00019998,2]
[350087543,1737611456710,-500.0,0.00019998,2]
[350087544,1737611456719,-687.86,0.00019998,2]
[350087545,1737611456729,-500.0,0.00019998,2]
[350087546,1737611456740,-526.68,0.00019998,2]
[350087547,1737611456750,-1114.72,0.00019998,2]
[350087548,1737611456759,-500.0,0.00019998,2]
[350087549,1737611456768,-1015.0,0.00019998,2]
[350087550,1737611456778,-500.0,0.00019998,2]
[350087551,1737611456787,-502.834558,0.00019998,2]
[350087552,1737611456797,-500.0,0.00019998,2]
[350087553,1737611456806,-2635.11,0.00019998,2]
[350087554,1737611456815,-500.0,0.00019998,2]
[350087555,1737611456825,-500.0,0.00019998,2]
[350087556,1737611456834,-1230.27,0.00019998,2]
[350087557,1737611456843,-500.0,0.00019998,2]
[350087558,1737611456852,-582.1,0.00019998,2]
[350087559,1737611456862,-500.0,0.00019998,2]
[350087560,1737611456871,-500.0,0.00019998,2]
[350087561,1737611456880,-1842.56,0.00019998,2]
[350087562,1737611456889,-500.0,0.00019998,2]
[350087563,1737611456899,-500.0,0.00019998,2]
[350087564,1737611456908,-862.13,0.00019998,2]
[350087565,1737611456917,-500.0,0.00019998,2]
[350087566,1737611456927,-500.0,0.00019998,2]
[350087567,1737611456936,-687.14,0.00019998,2]
[350087568,1737611456945,-500.0,0.00019998,2]
[350087569,1737611456955,-500.0,0.00019998,2]
[350087570,1737611456965,-500.0,0.00019998,2]
[350087571,1737611456974,-500.0,0.00019998,2]
[350087572,1737611456985,-500.0,0.00019998,2]
[350087573,1737611456995,-1223.08,0.00019998,2]
[350087574,1737611457004,-653.44,0.00019998,2]
[350087575,1737611457013,-500.0,0.00019998,2]
[350087576,1737611457023,-568.47,0.00019998,2]
[350087577,1737611457032,-500.0,0.00019998,2]
[350087578,1737611457042,-803.35,0.00019998,2]
[350087579,1737611457051,-519.41,0.00019998,2]
[350087580,1737611457060,-1382.01,0.00019998,2]
[350087581,1737611457069,-500.0,0.00019998,2]
[350087582,1737611457078,-1006.43,0.00019998,2]
[350087583,1737611457088,-500.0,0.00019998,2]
[350087584,1737611457098,-500.0,0.00019998,2]
[350087585,1737611457108,-1438.72,0.00019998,2]
[350087586,1737611457117,-1915.2,0.00019998,2]
[350087587,1737611457126,-500.0,0.00019998,2]
[350087588,1737611457136,-500.0,0.00019998,2]
[350087589,1737611457146,-798.39,0.00019998,2]
[350087590,1737611457155,-2677.87,0.00019998,2]
[350087591,1737611457164,-2057.62,0.00019998,2]
[350087592,1737611457173,-5446.26,0.00019999,2]
[350087593,1737611457184,-1056.81,0.00019999,2]
[350087594,1737611457193,-881.08,0.00019999,2]
[350087595,1737611457203,-2041.21,0.00019999,2]
[350087596,1737611457212,-500.0,0.00019999,2]
[350087597,1737611457221,-941.55,0.00019999,2]
[350087598,1737611457232,-1306.29,0.00019999,2]
[350087599,1737611457243,-1355.17,0.00019999,2]
[350087600,1737611457252,-500.0,0.00019999,2]
[350087601,1737611457262,-500.0,0.00019999,2]
[350087602,1737611457271,-500.0,0.00019999,2]
[350087603,1737611457281,-1000.0,0.00019999,2]
[350087604,1737611457290,-1220.7,0.00019999,2]
[350087605,1737611457299,-500.0,0.00019999,2]
[350087606,1737611457311,-1562.02,0.00019999,2]
[350087607,1737611457321,-2055.78,0.00019999,2]
[350087608,1737611457331,-500.0,0.00019999,2]
[350087609,1737611457341,-500.0,0.00019999,2]
[350087610,1737611457351,-500.0,0.00019999,2]
[350087611,1737611457360,-500.0,0.00019999,2]
[350087612,1737611457370,-2066.0,0.0002,2]
[350087613,1737611457381,-720258.71908672,0.0002,2]
[350087614,1737611457390,-924.56723007,0.0002,21]
[350087615,1737611457400,-816.51008196,0.0002,10]
[350087616,1737611457409,-6992.0,0.0002,4]
[350087617,1737611457419,-1500.0113821,0.0002,2]
[350087618,1737611457431,-1629.09530748,0.0002,2]
[350087619,1737611457441,-10902.8127157,0.0002,2]
[350087620,1737611457451,-223.6,0.0002,2]
[350087621,1737611457461,-276.93671681,0.0002,2]
[350087622,1737611457470,-500.0,0.0002,2]
[350087623,1737611457480,-500.0,0.0002,2]
[350087624,1737611457491,-500.0,0.0002,2]
[350087625,1737611457501,-500.0,0.0002,2]
[350087626,1737611457510,-500.0,0.0002,2]
[350087627,1737611457519,-500.0,0.0002,2]
[350087628,1737611457531,-500.0,0.0002,2]
[350087629,1737611457540,-500.0,0.0002,2]
[350087630,1737611457551,-500.0,0.0002,2]
[350087631,1737611457562,-2933.08,0.0002,2]
[350087632,1737611457571,-500.0,0.0002,2]
[350087633,1737611457581,-500.0,0.0002,2]
[350087634,1737611457592,-500.0,0.0002,2]
[350087635,1737611457722,-500.0,0.0002,2]
[350087636,1737611457755,-500.0,0.0002,2]
[350087637,1737611457764,-266.52730066,0.0002,2]
[350087638,1737611457774,-500.0,0.0002,2]
[350087639,1737611457784,-500.0,0.0002,2]
[350087640,1737611457794,-500.0,0.0002,2]
[350087641,1737611457804,-500.0,0.0002,2]
[350087642,1737611457813,-500.0,0.0002,2]
[350087643,1737611457823,-500.0,0.0002,2]
[350087644,1737611457834,-151.0,0.0002,2]
[350087645,1737611457844,-500.0,0.0002,2]
[350087646,1737611457854,-500.0,0.0002,2]
[350087647,1737611457864,-500.0,0.0002,2]
[350087648,1737611457874,-500.0,0.0002,2]
[350087649,1737611457883,-500.0,0.0002,2]
[350087650,1737611457893,-500.0,0.0002,2]
[350087651,1737611457902,-513.53,0.0002,2]
[350087652,1737611457912,-500.0,0.0002,2]
[350087653,1737611457920,-500.0,0.0002,2]
[350087654,1737611457930,-500.0,0.0002,2]
[350087655,1737611457939,-500.0,0.0002,2]
[350087656,1737611457949,-500.0,0.0002,2]
[350087657,1737611457959,-500.0,0.0002,2]
[350087658,1737611457970,-500.0,0.0002,2]
[350087659,1737611457979,-500.0,0.0002,2]
[350087660,1737611457991,-500.0,0.0002,2]
[350087661,1737611458001,-500.0,0.0002,2]
[350087662,1737611458011,-532.0,0.0002,2]
[350087663,1737611458021,-500.0,0.0002,2]
[350087664,1737611458031,-500.0,0.0002,2]
[350087665,1737611458041,-854.04,0.0002,2]
[350087666,1737611458051,-500.0,0.0002,2]
[350087667,1737611458060,-500.0,0.0002,2]
[350087668,1737611458070,-500.0,0.0002,2]
[350087669,1737611458080,-500.0,0.0002,2]
[350087670,1737611458090,-500.0,0.0002,2]
[350087671,1737611458100,-500.0,0.0002,2]
[350087672,1737611458110,-500.0,0.0002,2]
[350087673,1737611458120,-500.0,0.0002,2]
[350087674,1737611458129,-500.0,0.0002,2]
[350087675,1737611458138,-525.78105054,0.0002,2]
[350087676,1737611458148,-500.0,0.0002,2]
[350087677,1737611458157,-500.0,0.0002,2]
[350087678,1737611458167,-751.33,0.0002,2]
[350087679,1737611458176,-500.0,0.0002,2]
[350087680,1737611458186,-500.0,0.0002,2]
[350087681,1737611458196,-500.0,0.0002,2]
[350087682,1737611458207,-151.0,0.0002,2]
[350087683,1737611458217,-151.0,0.0002,2]
[350087684,1737611458227,-645.53,0.0002,2]
[350087685,1737611458242,-716.43,0.0002,2]
[350087686,1737611458252,-349.25385768,0.0002,2]
[350087687,1737611458261,-500.0,0.0002,2]
[350087688,1737611458271,-500.0,0.0002,2]
[350087689,1737611458280,-268.22849662,0.0002,2]
[350087690,1737611458290,-500.0,0.0002,2]
[350087691,1737611458302,-500.0,0.0002,2]
[350087692,1737611458315,-487.96969057,0.0002,2]
[350087693,1737611458324,-506.1622134,0.0002,2]
[350087694,1737611458334,-500.0,0.0002,2]
[350087695,1737611458344,-500.0,0.0002,2]
[350087696,1737611458354,-500.0,0.0002,2]
[350087697,1737611458364,-500.0,0.0002,2]
[350087698,1737611458374,-521.37661701,0.0002,2]
[350087699,1737611458384,-500.0,0.0002,2]
[350087700,1737611458394,-500.0,0.0002,2]
[350087701,1737611458403,-500.0,0.0002,2]
[350087702,1737611458413,-500.0,0.0002,2]
[350087703,1737611458423,-500.0,0.0002,2]
[350087704,1737611458432,-500.0,0.0002,2]
[350087705,1737611458442,-500.0,0.0002,2]
[350087706,1737611458451,-500.0,0.0002,2]
[350087707,1737611458461,-500.0,0.0002,2]
[350087708,1737611458470,-500.0,0.0002,2]
[350087709,1737611458480,-500.0,0.0002,2]
[350087710,1737611458494,-537.48,0.0002,2]
[350087711,1737611458503,-500.0,0.0002,2]
[350087712,1737611458512,-500.0,0.0002,2]
[350087713,1737611458521,-500.0,0.0002,2]
[350087714,1737611458531,-500.0,0.0002,2]
[350087715,1737611458540,-500.0,0.0002,2]
[350087716,1737611458550,-500.0,0.0002,2]
[350087717,1737611458561,-500.0,0.0002,2]
[350087718,1737611458570,-500.0,0.0002,2]
[350087719,1737611458580,-500.0,0.0002,2]
[350087720,1737611458590,-500.0,0.0002,2]
[350087721,1737611458602,-500.0,0.0002,2]
[350087722,1737611458612,-500.0,0.0002,2]
[350087723,1737611458621,-500.0,0.0002,2]
[350087724,1737611458631,-500.0,0.0002,2]
[350087725,1737611458640,-500.0,0.0002,2]
[350087726,1737611458650,-1962.38,0.0002,2]
[350087727,1737611458660,-500.0,0.0002,2]
[350087728,1737611458670,-1116.01,0.0002,2]
[350087729,1737611458680,-500.0,0.0002,2]
[350087730,1737611458690,-500.0,0.0002,2]
[350087731,1737611458700,-1678.25,0.0002,2]
[350087732,1737611458710,-500.0,0.0002,2]
[350087733,1737611458719,-500.0,0.0002,2]
[350087734,1737611458729,-500.0,0.0002,2]
[350087735,1737611458741,-500.0,0.0002,2]
[350087736,1737611458751,-500.0,0.0002,2]
[350087737,1737611458761,-500.0,0.0002,2]
[350087738,1737611458770,-1105.7,0.0002,2]
[350087739,1737611458780,-500.0,0.0002,2]
[350087740,1737611458790,-500.0,0.0002,2]
[350087741,1737611458799,-450.36117419,0.0002,2]
[350087742,1737611458809,-500.0,0.0002,2]
[350087743,1737611458818,-2112.6,0.0002,2]
[350087744,1737611458827,-500.0,0.0002,2]
[350087745,1737611458837,-1757.87,0.0002,2]
[350087746,1737611458846,-500.0,0.0002,2]
[350087747,1737611458855,-500.0,0.0002,2]
[350087748,1737611458865,-500.0,0.0002,2]
[350087749,1737611458875,-3281.81,0.0002,2]
[350087750,1737611458884,-1048.55,0.0002,2]
[350087751,1737611458894,-500.0,0.0002,2]
[350087752,1737611458903,-985.82,0.0002,2]
[350087753,1737611458912,-999.0,0.0002,2]
[350087754,1737611458921,-886.58,0.0002,2]
[350087755,1737611458931,-500.0,0.0002,2]
[350087756,1737611458940,-500.0,0.0002,2]
[350087757,1737611458950,-151.0,0.0002,2]
[350087758,1737611458959,-500.0,0.0002,2]
[350087759,1737611458969,-500.0,0.0002,2]
[350087760,1737611458978,-500.0,0.0002,2]
[350087761,1737611458989,-1000.0,0.0002,2]
[350087762,1737611458999,-500.0,0.0002,2]
[350087763,1737611459008,-1302.95,0.0002,2]
[350087764,1737611459017,-169.064511,0.0002,2]
[350087765,1737611459027,-169.064511,0.0002,2]
[350087766,1737611459036,-500.0,0.0002,2]
[350087767,1737611459046,-577.7,0.0002,2]
[350087768,1737611459055,-433.512751,0.0002,2]
[350087769,1737611459064,-433.512751,0.0002,2]
[350087770,1737611459074,-906.73,0.0002,2]
[350087771,1737611459083,-500.0,0.0002,2]
[350087772,1737611459093,-500.0,0.0002,2]
[350087773,1737611459102,-500.0,0.0002,2]
[350087774,1737611459111,-500.0,0.0002,2]
[350087775,1737611459121,-500.0,0.0002,2]
[350087776,1737611459130,-500.0,0.0002,2]
[350087777,1737611459140,-500.749783,0.0002,2]
[350087778,1737611459149,-500.0,0.0002,2]
[350087779,1737611459160,-524.03078,0.0002,2]
[350087780,1737611459169,-307.37757885,0.00020005,2]
[350087781,1737611459179,-2504.49,0.00020026,2]
[350087782,1737611459189,-1026.28434478,0.00020035,2]
[350087783,1737611459198,-2087.18199457,0.00020038,2]
[350087784,1737611459208,-12517.52,0.00020057,2]
[350087785,1737611459221,-2507.56,0.00020057,2]
[350087786,1737611459231,-2087.18199457,0.00020107,2]
[350087787,1737611459241,-500.0,0.00020171,2]
[350087788,1737611459251,-635.49,0.00020171,2]
[350087789,1737611459260,-500.0,0.00020171,2]
[350087790,1737611459270,-1026.28434478,0.00020172,2]
[350087791,1737611459279,-992.45,0.00020172,2]
[350087792,1737611459289,-500.0,0.00020172,2]
[350087793,1737611459299,-1922.27,0.00020172,2]
[350087794,1737611459309,-736.38,0.00020172,2]
[350087795,1737611459318,-598.74,0.00020172,2]
[350087796,1737611459328,-1530.88,0.00020172,2]
[350087797,1737611459338,-1226.94,0.00020172,2]
[350087798,1737611459347,-1453.16,0.00020172,2]
[350087799,1737611459358,-1139.9,0.00020172,2]
[350087800,1737611459369,-794.06,0.00020172,2]
[350087801,1737611459379,-500.0,0.00020172,2]
[350087802,1737611459390,-921.2,0.00020172,2]
[350087803,1737611459399,-2179.73,0.00020172,2]
[350087804,1737611459411,-2080.14,0.00020172,2]
[350087805,1737611459422,-1094.55,0.00020172,2]
[350087806,1737611459434,-898.14,0.00020172,2]
[350087807,1737611459444,-500.0,0.00020172,2]
[350087808,1737611459454,-2682.36,0.00020172,2]
[350087809,1737611459464,-751.43,0.00020172,2]
[350087810,1737611459473,-500.0,0.00020172,2]
[350087811,1737611459483,-500.0,0.00020172,2]
[350087812,1737611459492,-500.0,0.00020172,2]
[350087813,1737611459502,-1027.46,0.00020172,2]
[350087814,1737611459511,-500.0,0.00020172,2]
[350087815,1737611459525,-500.0,0.00020172,2]
[350087816,1737611459534,-2511.24,0.00020172,2]
[350087817,1737611459544,-622.38,0.00020172,2]
[350087818,1737611459554,-2087.18199457,0.00020176,2]
[350087819,1737611459563,-2266.70176659,0.00020207,2]
[350087820,1737611459574,-472.49299766,0.00020232,2]
[350087821,1737611459583,-2087.18199457,0.00020245,2]
[350087822,1737611459595,-209.0,0.0002025,2]
[350087823,1737611459605,-213.0,0.0002025,2]
[350087824,1737611459615,-500.0,0.00020272,2]
[350087825,1737611459625,-652.91,0.00020272,2]
[350087826,1737611459635,-500.0,0.00020272,2]
[350087827,1737611459645,-1103.54,0.00020272,2]
[350087828,1737611459655,-500.0,0.00020272,2]
[350087829,1737611459665,-156.05940059,0.00020272,2]
[350087830,1737611459676,-500.0,0.00020272,2]
[350087831,1737611459686,-500.0,0.00020272,2]
[350087832,1737611459695,-521.537734,0.00020272,2]
[350087833,1737611459705,-523.75,0.00020272,2]
[350087834,1737611459715,-814.46,0.00020272,2]
[350087835,1737611459724,-500.0,0.00020272,2]
[350087836,1737611459735,-521.67,0.00020272,2]
[350087837,1737611459744,-500.0,0.00020272,2]
[350087838,1737611459754,-500.0,0.00020272,2]
[350087839,1737611459765,-550.36,0.00020272,2]
[350087840,1737611459775,-661.84,0.00020272,2]
[350087841,1737611459784,-500.0,0.00020272,2]
[350087842,1737611459794,-500.0,0.00020272,2]
[350087843,1737611459803,-500.0,0.00020272,2]
[350087844,1737611459812,-500.0,0.00020272,2]
[350087845,1737611459822,-355.15052018,0.00020272,2]
[350087846,1737611459832,-756.71,0.00020272,2]
[350087847,1737611459848,-500.0,0.00020272,2]
[350087848,1737611459858,-516.23229215,0.00020272,2]
[350087849,1737611459868,-820.51,0.00020272,2]
[350087850,1737611459878,-500.0,0.00020272,2]
[350087851,1737611459888,-500.0,0.00020272,2]
[350087852,1737611459899,-500.0,0.00020272,2]
[350087853,1737611459908,-870.52,0.00020272,2]
[350087854,1737611459918,-500.0,0.00020272,2]
[350087855,1737611459928,-500.0,0.00020272,2]
[350087856,1737611459937,-500.0,0.00020272,2]
[350087857,1737611459947,-846.98,0.00020272,2]
[350087858,1737611459956,-560.38,0.00020272,2]
[350087859,1737611459966,-804.46,0.00020272,2]
[350087860,1737611459976,-500.0,0.00020272,2]
[350087861,1737611459986,-581.94832535,0.00020272,2]
[350087862,1737611459995,-515.58931405,0.00020272,2]
[350087863,1737611460005,-596.15,0.00020272,2]
[350087864,1737611460015,-500.0,0.00020272,2]
[350087865,1737611460025,-730.62,0.00020272,2]
[350087866,1737611460034,-722.81,0.00020272,2]
[350087867,1737611460044,-500.0,0.00020272,2]
[350087868,1737611460054,-500.0,0.00020272,2]
[350087869,1737611460063,-926.24,0.00020272,2]
[350087870,1737611460073,-872.58,0.00020272,2]
[350087871,1737611460083,-756.42,0.00020272,2]
[350087872,1737611460092,-571.58,0.00020272,2]
[350087873,1737611460101,-441.794103,0.00020272,2]
[350087874,1737611460111,-907.07,0.00020272,2]
[350087875,1737611460120,-500.0,0.00020272,2]
[350087876,1737611460130,-500.0,0.00020272,2]
[350087877,1737611460140,-740.54,0.00020272,2]
[350087878,1737611460150,-642.453793,0.00020272,2]
[350087879,1737611460159,-500.0,0.00020272,2]
[350087880,1737611460170,-500.0,0.00020272,2]
[350087881,1737611460220,-959.94,0.00020272,2]
[350087882,1737611460230,-459.08324222,0.00020272,2]
[350087883,1737611460243,-770.37,0.00020272,2]
[350087884,1737611460252,-500.0,0.00020272,2]
[350087885,1737611460262,-961.12,0.00020272,2]
[350087886,1737611460271,-928.68,0.00020272,2]
[350087887,1737611460281,-500.0,0.00020272,2]
[350087888,1737611460291,-3389.92,0.00020272,2]
[350087889,1737611460300,-500.0,0.00020272,2]
[350087890,1737611460309,-1163.05,0.00020272,2]
[350087891,1737611460319,-3328.2,0.00020272,2]
[350087892,1737611460329,-500.0,0.00020272,2]
[350087893,1737611460338,-647.35,0.00020272,2]
[350087894,1737611460347,-597.37,0.00020272,2]
[350087895,1737611460356,-1351.46,0.00020272,2]
[350087896,1737611460365,-500.0,0.00020272,2]
[350087897,1737611460374,-1916.09,0.00020272,2]
[350087898,1737611460384,-500.0,0.00020272,2]
[350087899,1737611460393,-1853.67,0.00020272,2]
[350087900,1737611460402,-500.0,0.00020272,2]
[350087901,1737611460411,-500.0,0.00020272,2]
[350087902,1737611460420,-500.0,0.00020272,2]
[350087903,1737611460429,-1180.89,0.00020272,2]
[350087904,1737611460440,-1225.17,0.00020272,2]
[350087905,1737611460450,-604.47,0.00020272,2]
[350087906,1737611460462,-2192.28,0.00020272,2]
[350087907,1737611460471,-1087.59,0.00020272,2]
[350087908,1737611460481,-544.27955278,0.00020272,2]
[350087909,1737611460494,-500.0,0.00020272,2]
[350087910,1737611460504,-2557.78,0.00020272,2]
[350087911,1737611460513,-500.0,0.00020272,2]
[350087912,1737611460523,-500.0,0.00020272,2]
[350087913,1737611460532,-687.86,0.00020272,2]
[350087914,1737611460541,-526.68,0.00020272,2]
[350087915,1737611460551,-1114.72,0.00020272,2]
[350087916,1737611460560,-500.0,0.00020272,2]
[350087917,1737611460569,-1015.0,0.00020272,2]
[350087918,1737611460579,-518.41364102,0.00020272,2]